fUST/lending_fUST_20241111
["ID","MTS","AMOUNT","RATE_DAILY","PERIOD"]
[341853135,1731255043115,-500.0,0.00024657,2]
[341853136,1731255043125,-500.0,0.00024657,2]
[341853137,1731255043134,-500.0,0.00024657,2]
[341853138,1731255043145,-500.0,0.00024657,2]
[341853139,1731255043154,-5404.73,0.00024657,2]
[341853140,1731255043164,-5404.73,0.00024657,2]
[341853141,1731255043173,-5404.73,0.00024657,2]
[341853142,1731255043183,-5404.73,0.00024657,2]
[341853143,1731255043192,-500.0,0.00024657,2]
[341853144,1731255043202,-5404.73,0.00024657,2]
[341853145,1731255043211,-559.20774295,0.00024657,2]
[341853146,1731255043221,-5404.73,0.00024657,2]
[341853147,1731255043233,-13833.7,0.00024657,2]
[341853148,1731255043242,-5404.73,0.00024657,2]
[341853149,1731255043252,-500.0,0.00024657,2]
[341853150,1731255043262,-5404.73,0.00024657,2]
[341853151,1731255043276,-5404.73,0.00024657,2]
[341853152,1731255043287,-500.0,0.00024657,2]
[341853153,1731255043297,-5404.73,0.00024657,2]
[341853154,1731255043306,-500.0,0.00024657,2]
[341853155,1731255043316,-5404.73,0.00024657,2]
[341853156,1731255043326,-5404.73,0.00024657,2]
[341853157,1731255043336,-5404.73,0.00024657,2]
[341853158,1731255043345,-5404.73,0.00024657,2]
[341853159,1731255043357,-5404.73,0.00024657,2]
[341853160,1731255043366,-501.57654143,0.00024657,2]
[341853161,1731255043376,-5404.73,0.00024657,2]
[341853162,1731255043385,-500.0,0.00024657,2]
[341853163,1731255043394,-500.0,0.00024657,2]
[341853164,1731255043403,-500.0,0.00024657,2]
[341853165,1731255043413,-500.0,0.00024657,2]
[341853166,1731255043422,-500.81312293,0.00024657,2]
[341853167,1731255043431,-502.76298619,0.00024657,2]
[341853168,1731255043441,-5140.64,0.00024657,2]
[341853169,1731255043451,-500.0,0.00024657,2]
[341853170,1731255043460,-500.0,0.00024657,2]
[341853171,1731255043470,-771.09,0.00024657,2]
[341853172,1731255043480,-500.0,0.00024657,2]
[341853173,1731255043489,-660.09,0.00024657,2]
[341853174,1731255043499,-500.0,0.00024657,2]
[341853175,1731255043509,-500.0,0.00024657,2]
[341853176,1731255043518,-500.0,0.00024657,2]
[341853177,1731255043531,-500.0,0.00024657,2]
[341853178,1731255043540,-1717.81,0.00024657,2]
[341853179,1731255043550,-500.0,0.00024657,2]
[341853180,1731255043560,-500.0,0.00024657,2]
[341853181,1731255043570,-500.0,0.00024657,2]
[341853182,1731255043579,-1566.13,0.00024657,2]
[341853183,1731255043589,-500.0,0.00024657,2]
[341853184,1731255043598,-500.0,0.00024657,2]
[341853185,1731255043608,-235.37026322,0.00024657,2]
[341853186,1731255043618,-500.0,0.00024657,2]
[341853187,1731255043627,-501.12035207,0.00024657,2]
[341853188,1731255043637,-500.0,0.00024657,2]
[341853189,1731255043647,-500.0,0.00024657,2]
[341853190,1731255043657,-2857.55,0.00024657,2]
[341853191,1731255043666,-500.0,0.00024657,2]
[341853192,1731255043675,-500.0,0.00024657,2]
[341853193,1731255043684,-500.0,0.00024657,2]
[341853194,1731255043693,-500.0,0.00024657,2]
[341853195,1731255043704,-500.0,0.00024657,2]
[341853196,1731255043713,-500.0,0.00024657,2]
[341853197,1731255043723,-501.33652771,0.00024657,2]
[341853198,1731255043732,-500.0,0.00024657,2]
[341853199,1731255043742,-1036.05,0.00024657,2]
[341853200,1731255043751,-500.98864187,0.00024657,2]
[341853201,1731255043760,-500.0,0.00024657,2]
[341853202,1731255043771,-301.61926498,0.00024657,2]
[341853203,1731255043783,-500.0,0.00024657,2]
[341853204,1731255043793,-500.0,0.00024657,2]
[341853205,1731255043802,-754.87,0.00024657,2]
[341853206,1731255043811,-500.0,0.00024657,2]
[341853207,1731255043820,-1738.29,0.00024657,2]
[341853208,1731255043830,-500.0,0.00024657,2]
[341853209,1731255043840,-500.0,0.00024657,2]
[341853210,1731255043849,-500.0,0.00024657,2]
[341853211,1731255043859,-500.0,0.00024657,2]
[341853212,1731255043868,-500.0,0.00024657,2]
[341853213,1731255043877,-500.0,0.00024657,2]
[341853214,1731255043886,-500.0,0.00024657,2]
[341853215,1731255043895,-500.0,0.00024657,2]
[341853216,1731255043904,-500.0,0.00024657,2]
[341853217,1731255043913,-500.0,0.00024657,2]
[341853218,1731255043923,-500.0,0.00024657,2]
[341853219,1731255043934,-500.0,0.00024657,2]
[341853220,1731255043943,-512.01895388,0.00024657,2]
[341853221,1731255043953,-500.0,0.00024657,2]
[341853222,1731255043962,-500.0,0.00024657,2]
[341853223,1731255043971,-500.0,0.00024657,2]
[341853224,1731255043981,-3741.27,0.00024657,2]
[341853225,1731255043990,-411.80809852,0.00024657,2]
[341853226,1731255043999,-1092.8,0.00024657,2]
[341853227,1731255044008,-500.0,0.00024657,2]
[341853228,1731255044019,-500.0,0.00024657,2]
[341853229,1731255044029,-573.9030516,0.00024657,2]
[341853230,1731255044038,-500.0,0.00024657,2]
[341853231,1731255044048,-500.0,0.00024657,2]
[341853232,1731255044058,-773.96,0.00024657,2]
[341853233,1731255044067,-1257.34,0.00024657,2]
[341853234,1731255044077,-500.0,0.00024657,2]
[341853235,1731255044087,-1292.24,0.00024657,2]
[341853236,1731255044095,-500.0,0.00024657,2]
[341853237,1731255044105,-2195.83,0.00024657,2]
[341853238,1731255044114,-500.0,0.00024657,2]
[341853239,1731255044124,-651.29607001,0.00024658,2]
[341853240,1731255044133,-5404.73,0.00024672,2]
[341853241,1731255044143,-554.70390979,0.00024673,2]
[341853242,1731255044152,-502.89685815,0.00024673,2]
[341853243,1731255044161,-500.0,0.00024673,2]
[341853244,1731255044170,-500.0,0.00024673,2]
[341853245,1731255044180,-500.0,0.00024673,2]
[341853246,1731255044190,-437.72467704,0.00024673,2]
[341853247,1731255044199,-321.25939195,0.00024673,2]
[341853248,1731255044209,-500.0,0.00024673,2]
[341853249,1731255044218,-500.0,0.00024673,2]
[341853250,1731255044227,-420.0,0.00024753,2]
[341853251,1731255044236,-2622.72285528,0.00024831,2]
[341853252,1731255044246,-5404.73,0.00024929,2]
[341853253,1731255044255,-5404.73,0.00024929,2]
[341853254,1731255044265,-1159.52,0.0002493,2]
[341853255,1731255044281,-1159.52,0.0002493,2]
[341853256,1731255044291,-1159.52,0.0002493,2]
[341853257,1731255044300,-1159.52,0.0002493,2]
[341853258,1731255044310,-1159.52,0.0002493,2]
[341853259,1731255044321,-1159.52,0.0002493,2]
[341853260,1731255044331,-5404.73,0.0002493,2]
[341853261,1731255044341,-5404.73,0.0002493,2]
[341853262,1731255044350,-5404.73,0.0002493,2]
[341853263,1731255044361,-5404.73,0.0002493,2]
[341853264,1731255044372,-5404.73,0.0002493,2]
[341853265,1731255044382,-502.01899444,0.00024931,2]
[341853266,1731255044391,-250.0,0.00024931,2]
[341853267,1731255044400,-500.0,0.00024931,2]
[341853268,1731255044409,-500.0,0.00024931,2]
[341853269,1731255044419,-575.3886209,0.00024931,2]
[341853270,1731255044428,-500.0,0.00024931,2]
[341853271,1731255044437,-500.0,0.00024931,2]
[341853272,1731255044447,-500.0,0.00024931,2]
[341853273,1731255044457,-500.0,0.00024931,2]
[341853274,1731255044466,-265.33848931,0.00024931,2]
[341853275,1731255044476,-500.0,0.00024931,2]
[341853276,1731255044484,-500.0,0.00024931,2]
[341853277,1731255044493,-500.0,0.00024931,2]
[341853278,1731255044503,-500.0,0.00024931,2]
[341853279,1731255044512,-506.85,0.00024931,2]
[341853280,1731255044523,-323.58959545,0.00024931,2]
[341853281,1731255044532,-500.0,0.00024931,2]
[341853282,1731255044541,-500.0,0.00024931,2]
[341853283,1731255044550,-532.89212309,0.00024931,2]
[341853284,1731255044561,-500.0,0.00024931,2]
[341853285,1731255044570,-313.62427912,0.00024931,2]
[341853286,1731255044580,-518.0615251,0.00024931,2]
[341853287,1731255044589,-536.89,0.00024931,2]
[341853288,1731255044599,-976.24,0.00024931,2]
[341853289,1731255044609,-500.0,0.00024931,2]
[341853290,1731255044619,-500.0,0.00024931,2]
[341853291,1731255044628,-500.0,0.00024931,2]
[341853292,1731255044637,-500.0,0.00024931,2]
[341853293,1731255044647,-500.0,0.00024931,2]
[341853294,1731255044657,-500.0,0.00024931,2]
[341853295,1731255044667,-500.0,0.00024931,2]
[341853296,1731255044676,-500.0,0.00024931,2]
[341853297,1731255044686,-500.0,0.00024931,2]
[341853298,1731255044695,-573.20733292,0.00024931,2]
[341853299,1731255044705,-500.0,0.00024931,2]
[341853300,1731255044714,-500.0,0.00024931,2]
[341853301,1731255044723,-522.35,0.00024931,2]
[341853302,1731255044732,-507.08872626,0.00024931,2]
[341853303,1731255044742,-500.0,0.00024931,2]
[341853304,1731255044752,-622.63611447,0.00024931,2]
[341853305,1731255044761,-500.0,0.00024931,2]
[341853306,1731255044773,-500.0,0.00024931,2]
[341853307,1731255044782,-595.60266855,0.00024931,2]
[341853308,1731255044792,-500.0,0.00024931,2]
[341853309,1731255044802,-559.51227185,0.00024931,2]
[341853310,1731255044813,-535.50767129,0.00024931,2]
[341853311,1731255044823,-500.0,0.00024931,2]
[341853312,1731255044833,-500.0,0.00024931,2]
[341853313,1731255044843,-500.0,0.00024931,2]
[341853314,1731255044852,-500.0,0.00024931,2]
[341853315,1731255044863,-500.0,0.00024931,2]
[341853316,1731255044873,-500.0,0.00024931,2]
[341853317,1731255044882,-310.30221024,0.00024931,2]
[341853318,1731255044892,-500.0,0.00024931,2]
[341853319,1731255044901,-615.8,0.00024931,2]
[341853320,1731255044911,-1904.11,0.00024931,2]
[341853321,1731255044920,-500.0,0.00024931,2]
[341853322,1731255045038,-519.71215643,0.00024931,2]
[341853323,1731255045048,-500.0,0.00024931,2]
[341853324,1731255045058,-500.0,0.00024931,2]
[341853325,1731255045067,-500.0,0.00024931,2]
[341853326,1731255045077,-510.59476644,0.00024931,2]
[341853327,1731255045086,-500.0,0.00024931,2]
[341853328,1731255045096,-500.0,0.00024931,2]
[341853329,1731255045106,-500.0,0.00024931,2]
[341853330,1731255045116,-626.43,0.00024931,2]
[341853331,1731255045126,-500.0,0.00024931,2]
[341853332,1731255045135,-174.19507419,0.00024931,2]
[341853333,1731255045145,-500.0,0.00024931,2]
[341853334,1731255045155,-500.0,0.00024931,2]
[341853335,1731255045165,-199.02025279,0.00024931,2]
[341853336,1731255045175,-200.0,0.00024931,2]
[341853337,1731255045185,-500.0,0.00024931,2]
[341853338,1731255045193,-500.0,0.00024931,2]
[341853339,1731255045202,-500.0,0.00024931,2]
[341853340,1731255045211,-586.34610552,0.00024931,2]
[341853341,1731255045221,-500.0,0.00024931,2]
[341853342,1731255045231,-500.0,0.00024931,2]
[341853343,1731255045240,-500.0,0.00024931,2]
[341853344,1731255045249,-508.43100591,0.00024931,2]
[341853345,1731255045259,-714.67,0.00024931,2]
[341853346,1731255045269,-500.0,0.00024931,2]
[341853347,1731255045282,-500.0,0.00024931,2]
[341853348,1731255045291,-500.0,0.00024931,2]
[341853349,1731255045301,-500.0,0.00024931,2]
[341853350,1731255045311,-500.0,0.00024931,2]
[341853351,1731255045321,-500.0,0.00024931,2]
[341853353,1731255045331,-634.29,0.00024931,2]
[341853354,1731255045340,-624.9,0.00024931,2]
[341853355,1731255045349,-500.0,0.00024931,2]
[341853356,1731255045362,-500.0,0.00024931,2]
[341853357,1731255045372,-500.0,0.00024931,2]
[341853358,1731255045381,-500.0,0.00024931,2]
[341853359,1731255045391,-500.0,0.00024931,2]
[341853360,1731255045401,-500.0,0.00024931,2]
[341853361,1731255045411,-531.82,0.00024931,2]
[341853362,1731255045420,-500.0,0.00024931,2]
[341853363,1731255045429,-500.0,0.00024931,2]
[341853365,1731255045439,-500.0,0.00024931,2]
[341853366,1731255045448,-500.0,0.00024931,2]
[341853367,1731255045458,-500.0,0.00024931,2]
[341853368,1731255045468,-500.0,0.00024931,2]
[341853369,1731255045477,-2504.53,0.00024931,2]
[341853370,1731255045487,-500.0,0.00024931,2]
[341853372,1731255045496,-500.0,0.00024931,2]
[341853374,1731255045505,-506.78987972,0.00024931,2]
[341853376,1731255045514,-500.0,0.00024931,2]
[341853378,1731255045524,-500.0,0.00024931,2]
[341853379,1731255045533,-355.48521943,0.00024931,2]
[341853380,1731255045541,-500.0,0.00024931,2]
[341853381,1731255045550,-500.0,0.00024931,2]
[341853383,1731255045559,-500.0,0.00024931,2]
[341853385,1731255045568,-766.46,0.00024931,2]
[341853386,1731255045577,-500.0,0.00024931,2]
[341853387,1731255045587,-762.85,0.00024931,2]
[341853388,1731255045597,-840.59,0.00024931,2]
[341853389,1731255045608,-500.0,0.00024931,2]
[341853390,1731255045618,-500.0,0.00024931,2]
[341853391,1731255045628,-500.0,0.00024931,2]
[341853393,1731255045639,-581.65,0.00024931,2]
[341853395,1731255045650,-1106.59,0.00024931,2]
[341853396,1731255045660,-500.0,0.00024931,2]
[341853398,1731255045669,-500.0,0.00024931,2]
[341853400,1731255045679,-500.0,0.00024931,2]
[341853402,1731255045689,-500.0,0.00024931,2]
[341853404,1731255045699,-524.23,0.00024931,2]
[341853405,1731255045710,-500.0,0.00024931,2]
[341853406,1731255045721,-774.18,0.00024931,2]
[341853408,1731255045733,-500.0,0.00024931,2]
[341853409,1731255045754,-813.6,0.00024931,2]
[341853411,1731255045768,-500.0,0.00024931,2]
[341853413,1731255045779,-529.42,0.00024931,2]
[341853414,1731255045789,-500.0,0.00024931,2]
[341853415,1731255045799,-500.0,0.00024931,2]
[341853416,1731255045809,-6522.97,0.00024931,2]
[341853417,1731255045819,-724.59,0.00024931,2]
[341853418,1731255045830,-500.0,0.00024931,2]
[341853420,1731255045840,-626.06,0.00024931,2]
[341853422,1731255045850,-500.0,0.00024931,2]
[341853424,1731255045861,-1776.80258585,0.00024931,2]
[341853426,1731255045870,-500.0,0.00024931,2]
[341853427,1731255045880,-500.0,0.00024931,2]
[341853428,1731255045891,-500.0,0.00024931,2]
[341853429,1731255045901,-500.0,0.00024931,2]
[341853430,1731255045911,-500.0,0.00024931,2]
[341853431,1731255045921,-500.0,0.00024931,2]
[341853432,1731255045931,-500.0,0.00024931,2]
[341853433,1731255045942,-500.0,0.00024931,2]
[341853434,1731255045952,-500.0,0.00024931,2]
[341853435,1731255045962,-500.0,0.00024931,2]
[341853436,1731255045972,-500.0,0.00024931,2]
[341853437,1731255045982,-500.0,0.00024931,2]
[341853438,1731255045991,-500.0,0.00024931,2]
[341853439,1731255046001,-500.0,0.00024931,2]
[341853440,1731255046010,-915.15,0.00024931,2]
[341853441,1731255046022,-500.0,0.00024931,2]
[341853442,1731255046033,-1306.25,0.00024931,2]
[341853443,1731255046043,-500.0,0.00024931,2]
[341853444,1731255046053,-500.0,0.00024931,2]
[341853445,1731255046064,-500.0,0.00024931,2]
[341853446,1731255046074,-586.40656153,0.00024931,2]
[341853447,1731255046087,-500.0,0.00024931,2]
[341853448,1731255046098,-500.0,0.00024931,2]
[341853449,1731255046107,-500.0,0.00024931,2]
[341853450,1731255046118,-500.0,0.00024931,2]
[341853451,1731255046128,-864.51,0.00024931,2]
[341853452,1731255046138,-500.0,0.00024931,2]
[341853453,1731255046148,-500.0,0.00024931,2]
[341853454,1731255046158,-500.0,0.00024931,2]
[341853455,1731255046168,-13833.7,0.00024931,2]
[341853456,1731255046178,-500.0,0.00024931,2]
[341853457,1731255046189,-500.0,0.00024931,2]
[341853458,1731255046201,-500.0,0.00024931,2]
[341853459,1731255046211,-5140.64,0.00024931,2]
[341853460,1731255046223,-771.09,0.00024931,2]
[341853461,1731255046233,-660.09,0.00024931,2]
[341853462,1731255046244,-500.0,0.00024931,2]
[341853463,1731255046255,-1717.81,0.00024931,2]
[341853464,1731255046265,-500.0,0.00024931,2]
[341853465,1731255046281,-1566.13,0.00024931,2]
[341853466,1731255046293,-500.0,0.00024931,2]
[341853467,1731255046303,-500.0,0.00024931,2]
[341853468,1731255046314,-500.0,0.00024931,2]
[341853469,1731255046324,-500.0,0.00024931,2]
[341853470,1731255046334,-2857.55,0.00024931,2]
[341853471,1731255046344,-500.0,0.00024931,2]
[341853472,1731255046354,-500.0,0.00024931,2]
[341853473,1731255046366,-1036.05,0.00024931,2]
[341853474,1731255046376,-500.0,0.00024931,2]
[341853475,1731255046386,-500.0,0.00024931,2]
[341853476,1731255046396,-754.87,0.00024931,2]
[341853477,1731255046407,-1738.29,0.00024931,2]
[341853478,1731255046417,-211.65814992,0.00024931,2]
[341853479,1731255046427,-500.0,0.00024931,2]
[341853480,1731255046436,-500.0,0.00024931,2]
[341853481,1731255046446,-500.0,0.00024931,2]
[341853482,1731255046455,-500.0,0.00024931,2]
[341853483,1731255046466,-500.0,0.00024931,2]
[341853484,1731255046475,-500.0,0.00024931,2]
[341853485,1731255046485,-500.0,0.00024931,2]
[341853486,1731255046495,-500.0,0.00024931,2]
[341853487,1731255046505,-500.0,0.00024931,2]
[341853488,1731255046514,-3741.27,0.00024931,2]
[341853489,1731255046527,-1092.8,0.00024931,2]
[341853490,1731255046537,-500.0,0.00024931,2]
[341853491,1731255046547,-773.96,0.00024931,2]
[341853492,1731255046557,-1257.34,0.00024931,2]
[341853493,1731255046568,-500.0,0.00024931,2]
[341853494,1731255046578,-1292.24,0.00024931,2]
[341853495,1731255046588,-500.0,0.00024931,2]
[341853496,1731255046598,-2195.83,0.00024931,2]
[341853497,1731255046613,-500.46639605,0.00024973,2]
[341853498,1731255046623,-500.0,0.00024973,2]
[341853499,1731255046633,-500.0,0.00024973,2]
[341853500,1731255046643,-500.0,0.00024973,2]
[341853501,1731255046653,-500.0,0.00024973,2]
[341853502,1731255046663,-500.0,0.00024973,2]
[341853503,1731255046673,-500.0,0.00024973,2]
[341853504,1731255046683,-500.0,0.00024973,2]
[341853505,1731255046695,-500.0,0.00024973,2]
[341853506,1731255046705,-507.47644622,0.00024973,2]
[341853507,1731255046716,-500.0,0.00024973,2]
[341853508,1731255046727,-500.0,0.00024973,2]
[341853509,1731255046737,-420.0,0.00025077,2]
[341853510,1731255046747,-166.385328,0.00025126,2]
[341853511,1731255046758,-1159.52,0.00025203,2]
[341853512,1731255046770,-1159.52,0.00025203,2]
[341853513,1731255046788,-1159.52,0.00025203,2]
[341853514,1731255046798,-1159.52,0.00025203,2]
[341853515,1731255046809,-1159.52,0.00025203,2]
[341853516,1731255046819,-1159.75,0.00025203,2]
[341853517,1731255046829,-239.60757747,0.00025204,2]
[341853518,1731255046839,-212.95288039,0.00025204,2]
[341853519,1731255046849,-352.8869607,0.00025204,2]
[341853520,1731255046859,-500.0,0.00025204,2]
[341853521,1731255046868,-500.0,0.00025204,2]
[341853522,1731255046878,-214.87416004,0.00025204,2]
[341853523,1731255046888,-243.39332924,0.00025204,2]
[341853524,1731255046898,-466.13832228,0.00025204,2]
[341853525,1731255046908,-500.0,0.00025204,2]
[341853526,1731255046918,-214.31535332,0.00025204,2]
[341853527,1731255046928,-500.0,0.00025205,2]
[341853528,1731255046937,-500.0,0.00025205,2]
[341853529,1731255046947,-500.0,0.00025205,2]
[341853530,1731255046956,-500.0,0.00025205,2]
[341853531,1731255046966,-500.0,0.00025205,2]
[341853532,1731255046976,-500.0,0.00025205,2]
[341853533,1731255046986,-500.0,0.00025205,2]
[341853534,1731255046996,-500.0,0.00025205,2]
[341853535,1731255047006,-506.85,0.00025205,2]
[341853536,1731255047016,-500.0,0.00025205,2]
[341853537,1731255047028,-500.0,0.00025205,2]
[341853538,1731255047038,-570.84331076,0.00025205,2]
[341853539,1731255047047,-536.89,0.00025205,2]
[341853540,1731255047057,-976.24,0.00025205,2]
[341853541,1731255047067,-500.0,0.00025205,2]
[341853542,1731255047076,-500.0,0.00025205,2]
[341853543,1731255047086,-500.0,0.00025205,2]
[341853544,1731255047096,-500.0,0.00025205,2]
[341853545,1731255047106,-500.0,0.00025205,2]
[341853546,1731255047116,-508.80888844,0.00025205,2]
[341853547,1731255047126,-500.0,0.00025205,2]
[341853548,1731255047135,-522.35,0.00025205,2]
[341853549,1731255047145,-500.0,0.00025205,2]
[341853550,1731255047154,-500.0,0.00025205,2]
[341853551,1731255047163,-500.0,0.00025205,2]
[341853552,1731255047172,-500.0,0.00025205,2]
[341853553,1731255047182,-616.19,0.00025205,2]
[341853554,1731255047191,-500.0,0.00025205,2]
[341853555,1731255047201,-500.0,0.00025205,2]
[341853556,1731255047210,-500.0,0.00025205,2]
[341853557,1731255047220,-615.8,0.00025205,2]
[341853558,1731255047230,-1904.11,0.00025205,2]
[341853559,1731255047240,-500.0,0.00025205,2]
[341853560,1731255047249,-500.0,0.00025205,2]
[341853561,1731255047259,-500.0,0.00025205,2]
[341853562,1731255047268,-534.83,0.00025205,2]
[341853563,1731255047284,-500.0,0.00025205,2]
[341853564,1731255047294,-500.0,0.00025205,2]
[341853565,1731255047303,-626.43,0.00025205,2]
[341853566,1731255047313,-500.0,0.00025205,2]
[341853567,1731255047323,-500.0,0.00025205,2]
[341853568,1731255047333,-200.0,0.00025205,2]
[341853569,1731255047343,-500.0,0.00025205,2]
[341853570,1731255047353,-262.02112868,0.00025205,2]
[341853571,1731255047364,-500.0,0.00025205,2]
[341853572,1731255047373,-500.0,0.00025205,2]
[341853573,1731255047383,-500.0,0.00025205,2]
[341853574,1731255047392,-500.0,0.00025205,2]
[341853575,1731255047402,-714.67,0.00025205,2]
[341853576,1731255047412,-500.0,0.00025205,2]
[341853577,1731255047422,-500.0,0.00025205,2]
[341853578,1731255047432,-500.0,0.00025205,2]
[341853579,1731255047441,-500.0,0.00025205,2]
[341853580,1731255047451,-500.0,0.00025205,2]
[341853581,1731255047461,-566.73612131,0.00025205,2]
[341853582,1731255047558,-634.29,0.00025205,2]
[341853583,1731255047579,-624.9,0.00025205,2]
[341853584,1731255047588,-500.0,0.00025205,2]
[341853585,1731255047598,-500.0,0.00025205,2]
[341853586,1731255047608,-500.0,0.00025205,2]
[341853587,1731255047617,-500.0,0.00025205,2]
[341853588,1731255047626,-500.0,0.00025205,2]
[341853589,1731255047636,-500.0,0.00025205,2]
[341853590,1731255047645,-500.0,0.00025205,2]
[341853591,1731255047654,-500.0,0.00025205,2]
[341853592,1731255047664,-500.0,0.00025205,2]
[341853593,1731255047674,-500.0,0.00025205,2]
[341853594,1731255047684,-2504.53,0.00025205,2]
[341853595,1731255047694,-500.0,0.00025205,2]
[341853596,1731255047704,-500.0,0.00025205,2]
[341853597,1731255047714,-500.0,0.00025205,2]
[341853598,1731255047724,-500.0,0.00025205,2]
[341853599,1731255047734,-480.71777672,0.00025205,2]
[341853600,1731255047743,-766.46,0.00025205,2]
[341853601,1731255047752,-500.0,0.00025205,2]
[341853602,1731255047761,-762.85,0.00025205,2]
[341853603,1731255047771,-840.59,0.00025205,2]
[341853604,1731255047783,-500.0,0.00025205,2]
[341853605,1731255047792,-500.0,0.00025205,2]
[341853606,1731255047802,-500.0,0.00025205,2]
[341853607,1731255047811,-581.65,0.00025205,2]
[341853608,1731255047821,-1106.59,0.00025205,2]
[341853609,1731255047830,-500.0,0.00025205,2]
[341853610,1731255047840,-599.56962029,0.00025205,2]
[341853611,1731255047850,-500.0,0.00025205,2]
[341853612,1731255047859,-524.23,0.00025205,2]
[341853613,1731255047868,-500.0,0.00025205,2]
[341853614,1731255047877,-774.18,0.00025205,2]
[341853615,1731255047887,-385.34772552,0.00025205,2]
[341853616,1731255047896,-813.6,0.00025205,2]
[341853617,1731255047906,-453.87898042,0.00025205,2]
[341853618,1731255047915,-529.42,0.00025205,2]
[341853619,1731255047924,-500.0,0.00025205,2]
[341853620,1731255047933,-500.0,0.00025205,2]
[341853621,1731255047943,-6522.97,0.00025205,2]
[341853622,1731255047952,-724.59,0.00025205,2]
[341853623,1731255047961,-626.06,0.00025205,2]
[341853624,1731255047971,-500.0,0.00025205,2]
[341853625,1731255047980,-500.0,0.00025205,2]
[341853626,1731255047990,-500.0,0.00025205,2]
[341853627,1731255048000,-500.0,0.00025205,2]
[341853628,1731255048009,-500.0,0.00025205,2]
[341853629,1731255048019,-500.0,0.00025205,2]
[341853630,1731255048030,-500.0,0.00025205,2]
[341853631,1731255048040,-500.0,0.00025205,2]
[341853632,1731255048050,-500.0,0.00025205,2]
[341853633,1731255048059,-500.0,0.00025205,2]
[341853634,1731255048069,-500.0,0.00025205,2]
[341853635,1731255048079,-915.15,0.00025205,2]
[341853636,1731255048088,-1306.25,0.00025205,2]
[341853637,1731255048098,-500.0,0.00025205,2]
[341853638,1731255048108,-500.0,0.00025205,2]
[341853639,1731255048117,-500.0,0.00025205,2]
[341853640,1731255048127,-500.0,0.00025205,2]
[341853641,1731255048136,-500.0,0.00025205,2]
[341853642,1731255048146,-250.763603,0.00025205,2]
[341853643,1731255048156,-500.0,0.00025205,2]
[341853644,1731255048165,-864.51,0.00025205,2]
[341853645,1731255048175,-500.0,0.00025205,2]
[341853646,1731255048184,-500.0,0.00025205,2]
[341853647,1731255048194,-500.0,0.00025205,2]
[341853648,1731255048203,-13833.7,0.00025205,2]
[341853649,1731255048213,-500.0,0.00025205,2]
[341853650,1731255048222,-500.0,0.00025205,2]
[341853651,1731255048232,-5140.64,0.00025205,2]
[341853652,1731255048242,-771.09,0.00025205,2]
[341853653,1731255048251,-660.09,0.00025205,2]
[341853654,1731255048262,-1717.81,0.00025205,2]
[341853655,1731255048272,-500.0,0.00025205,2]